lending/lending_fUSD_20240710
["ID","MTS","AMOUNT","RATE_DAILY","PERIOD"]
[331639877,1720599061618,-626.76,0.00013808,2]
[331639878,1720599061628,-522.85,0.00013808,2]
[331639879,1720599061637,-500.0,0.00013808,2]
[331639880,1720599061647,-578.65,0.00013808,2]
[331639881,1720599061657,-500.0,0.00013808,2]
[331639882,1720599061667,-1672.93,0.00013808,2]
[331639883,1720599061677,-411.16338986,0.00013808,2]
[331639884,1720599061686,-500.0,0.00013808,2]
[331639885,1720599061696,-885.29,0.00013808,2]
[331639886,1720599061705,-1156.41,0.00013808,2]
[331639887,1720599061715,-500.0,0.00013808,2]
[331639888,1720599061725,-500.0,0.00013808,2]
[331639889,1720599061734,-500.0,0.00013808,2]
[331639890,1720599061743,-500.0,0.00013808,2]
[331639891,1720599061753,-500.0,0.00013808,2]
[331639892,1720599061763,-500.0,0.00013808,2]
[331639893,1720599061774,-500.0,0.00013808,2]
[331639894,1720599061784,-644.61,0.00013808,2]
[331639895,1720599061793,-500.0,0.00013808,2]
[331639896,1720599061803,-500.0,0.00013808,2]
[331639897,1720599061813,-500.0,0.00013808,2]
[331639898,1720599061823,-500.0,0.00013808,2]
[331639899,1720599061833,-1492.93,0.00013808,2]
[331639900,1720599061842,-500.0,0.00013808,2]
[331639901,1720599061852,-779.24,0.00013808,2]
[331639902,1720599061861,-500.0,0.00013808,2]
[331639903,1720599061870,-500.0,0.00013808,2]
[331639904,1720599061880,-500.0,0.00013808,2]
[331639905,1720599061889,-579.08,0.00013808,2]
[331639906,1720599061899,-500.0,0.00013808,2]
[331639907,1720599061907,-500.0,0.00013808,2]
[331639908,1720599061917,-995.91,0.00013808,2]
[331639909,1720599061927,-621.14,0.00013808,2]
[331639910,1720599061937,-500.0,0.00013808,2]
[331639911,1720599061946,-500.0,0.00013808,2]
[331639912,1720599061955,-530.61,0.00013808,2]
[331639913,1720599061965,-500.0,0.00013808,2]
[331639914,1720599061974,-500.0,0.00013808,2]
[331639915,1720599061983,-500.0,0.00013808,2]
[331639916,1720599061992,-552.21,0.00013808,2]
[331639917,1720599062001,-374.56096562,0.00013808,2]
[331639918,1720599062011,-500.0,0.00013808,2]
[331639919,1720599062020,-989.36,0.00013808,2]
[331639920,1720599062029,-856.73,0.00013808,2]
[331639921,1720599062039,-746.97,0.00013808,2]
[331639922,1720599062049,-525.1,0.00013808,2]
[331639923,1720599062059,-500.0,0.00013808,2]
[331639924,1720599062070,-1114.99,0.00013808,2]
[331639925,1720599062079,-500.0,0.00013808,2]
[331639926,1720599062088,-500.0,0.00013808,2]
[331639927,1720599062098,-1204.3,0.00013808,2]
[331639928,1720599062108,-500.0,0.00013808,2]
[331639929,1720599062117,-500.0,0.00013808,2]
[331639930,1720599062127,-1056.43,0.00013808,2]
[331639931,1720599062137,-500.0,0.00013808,2]
[331639932,1720599062147,-500.0,0.00013808,2]
[331639933,1720599062157,-500.0,0.00013808,2]
[331639934,1720599062166,-500.0,0.00013808,2]
[331639935,1720599062177,-1568.94,0.00013808,2]
[331639936,1720599062186,-614.53,0.00013808,2]
[331639937,1720599062196,-1053.28,0.00013808,2]
[331639938,1720599062207,-935.57,0.00013808,2]
[331639939,1720599062216,-631.47,0.00013808,2]
[331639940,1720599062227,-555.99,0.00013808,2]
[331639941,1720599062237,-500.0,0.00013808,2]
[331639942,1720599062247,-906.8,0.00013808,2]
[331639943,1720599062256,-957.98,0.00013808,2]
[331639944,1720599062265,-684.18,0.00013808,2]
[331639945,1720599062274,-1348.78,0.00013808,2]
[331639946,1720599062283,-500.0,0.00013808,2]
[331639947,1720599062292,-684.12,0.00013808,2]
[331639948,1720599062302,-500.0,0.00013808,2]
[331639949,1720599062311,-584.34421384,0.00013808,2]
[331639950,1720599062321,-500.0,0.00013808,2]
[331639951,1720599062330,-950.63,0.00013808,2]
[331639952,1720599062339,-500.0,0.00013808,2]
[331639953,1720599062348,-500.0,0.00013808,2]
[331639954,1720599062358,-821.56,0.00013808,2]
[331639955,1720599062369,-682.88,0.00013808,2]
[331639956,1720599062378,-731.7,0.00013808,2]
[331639957,1720599062388,-500.0,0.00013808,2]
[331639958,1720599062397,-500.0,0.00013808,2]
[331639959,1720599062408,-510.48,0.00013808,2]
[331639960,1720599062418,-528.99,0.00013808,2]
[331639961,1720599062428,-1584.03,0.00013808,2]
[331639962,1720599062438,-805.84,0.00013808,2]
[331639963,1720599062447,-885.9,0.00013808,2]
[331639964,1720599062457,-735.57,0.00013808,2]
[331639965,1720599062466,-500.0,0.00013808,2]
[331639966,1720599062476,-500.0,0.00013808,2]
[331639967,1720599062486,-500.0,0.00013808,2]
[331639968,1720599062496,-500.0,0.00013808,2]
[331639969,1720599062507,-500.0,0.00013808,2]
[331639970,1720599062518,-500.0,0.00013808,2]
[331639971,1720599062527,-500.0,0.00013808,2]
[331639972,1720599062536,-500.0,0.00013808,2]
[331639973,1720599062546,-1067.53,0.00013808,2]
[331639974,1720599062555,-500.0,0.00013808,2]
[331639975,1720599062565,-500.0,0.00013808,2]
[331639976,1720599062576,-1209.03,0.00013808,2]
[331639977,1720599062586,-1237.1,0.00013808,2]
[331639978,1720599062595,-500.0,0.00013808,2]
[331639979,1720599062604,-500.0,0.00013808,2]
[331639980,1720599062614,-500.0,0.00013808,2]
[331639981,1720599062623,-500.0,0.00013808,2]
[331639982,1720599062633,-500.0,0.00013808,2]
[331639983,1720599062643,-858.33,0.00013808,2]
[331639984,1720599062653,-500.0,0.00013808,2]
[331639985,1720599062662,-188.37264805,0.00013808,2]
[331639986,1720599062672,-500.0,0.00013808,2]
[331639987,1720599062681,-845.17,0.00013808,2]
[331639988,1720599062690,-522.43,0.00013808,2]
[331639989,1720599062699,-500.0,0.00013808,2]
[331639990,1720599062709,-500.0,0.00013808,2]
[331639991,1720599062718,-500.0,0.00013808,2]
[331639992,1720599062727,-1171.79,0.00013808,2]
[331639993,1720599062737,-500.0,0.00013808,2]
[331639994,1720599062746,-500.0,0.00013808,2]
[331639995,1720599062755,-424.39490958,0.00013808,2]
[331639996,1720599062764,-500.0,0.00013808,2]
[331639997,1720599062773,-1660.49,0.00013808,2]
[331639998,1720599062783,-754.51,0.00013808,2]
[331639999,1720599062793,-647.59,0.00013808,2]
[331640000,1720599062803,-638.0,0.00013808,2]
[331640001,1720599062812,-269.01379968,0.00013808,2]
[331640002,1720599062824,-529.05,0.00013808,2]
[331640003,1720599062834,-781.92,0.00013808,2]
[331640004,1720599062845,-676.2,0.00013808,2]
[331640005,1720599062855,-1040.02,0.00013808,2]
[331640006,1720599062868,-500.0,0.00013808,2]
[331640007,1720599062878,-1420.74,0.00013808,2]
[331640008,1720599062887,-1139.0,0.00013808,2]
[331640009,1720599062898,-655.65,0.00013808,2]
[331640010,1720599062908,-500.0,0.00013808,2]
[331640011,1720599062917,-500.0,0.00013808,2]
[331640012,1720599062927,-821.91,0.00013808,2]
[331640013,1720599062937,-500.0,0.00013808,2]
[331640014,1720599062946,-500.0,0.00013808,2]
[331640015,1720599062956,-500.0,0.00013808,2]
[331640016,1720599062966,-500.0,0.00013808,2]
[331640017,1720599062975,-500.0,0.00013808,2]
[331640018,1720599062985,-500.0,0.00013808,2]
[331640019,1720599062994,-500.0,0.00013808,2]
[331640020,1720599063003,-1028.2,0.00013808,2]
[331640021,1720599063013,-1037.5,0.00013808,2]
[331640022,1720599063023,-801.41,0.00013808,2]
[331640023,1720599063033,-1095.61,0.00013808,2]
[331640024,1720599063043,-535.95,0.00013808,2]
[331640025,1720599063053,-500.0,0.00013808,2]
[331640026,1720599063063,-500.0,0.00013808,2]
[331640027,1720599063076,-575.22,0.00013808,2]
[331640028,1720599063087,-2178.76,0.00013808,2]
[331640029,1720599063096,-1088.86,0.00013808,2]
[331640030,1720599063106,-686.94,0.00013808,2]
[331640031,1720599063116,-1716.99,0.00013808,2]
[331640032,1720599063126,-500.0,0.00013808,2]
[331640033,1720599063136,-500.0,0.00013808,2]
[331640034,1720599063146,-500.0,0.00013808,2]
[331640035,1720599063156,-625.68,0.00013808,2]
[331640036,1720599063166,-500.0,0.00013808,2]
[331640037,1720599063176,-1508.13,0.00013808,2]
[331640038,1720599063186,-544.94,0.00013808,2]
[331640039,1720599063196,-1998.12,0.00013808,2]
[331640040,1720599063205,-500.0,0.00013808,2]
[331640041,1720599063215,-1049.35,0.00013808,2]
[331640042,1720599063224,-500.0,0.00013808,2]
[331640043,1720599063234,-500.0,0.00013808,2]
[331640044,1720599063244,-1098.36,0.00013808,2]
[331640045,1720599063253,-500.0,0.00013808,2]
[331640046,1720599063263,-500.0,0.00013808,2]
[331640047,1720599063273,-500.0,0.00013808,2]
[331640048,1720599063283,-974.95,0.00013808,2]
[331640049,1720599063292,-500.0,0.00013808,2]
[331640050,1720599063302,-738.81,0.00013808,2]
[331640051,1720599063414,-574.46,0.00013808,2]
[331640052,1720599063424,-899.97,0.00013808,2]
[331640053,1720599063434,-500.0,0.00013808,2]
[331640054,1720599063444,-500.0,0.00013808,2]
[331640055,1720599063453,-583.89,0.00013808,2]
[331640056,1720599063462,-151.0,0.00013808,2]
[331640057,1720599063472,-151.0,0.00013808,2]
[331640058,1720599063481,-500.0,0.00013808,2]
[331640059,1720599063491,-500.0,0.00013808,2]
[331640060,1720599063503,-1132.07,0.00013808,2]
[331640061,1720599063518,-941.8,0.00013808,2]
[331640062,1720599063528,-500.0,0.00013808,2]
[331640063,1720599063537,-553.03,0.00013808,2]
[331640064,1720599063547,-1776.14,0.00013808,2]
[331640065,1720599063557,-500.0,0.00013808,2]
[331640066,1720599063567,-500.0,0.00013808,2]
[331640067,1720599063582,-500.0,0.00013808,2]
[331640068,1720599063591,-1213.07,0.00013808,2]
[331640069,1720599063601,-500.0,0.00013808,2]
[331640070,1720599063611,-500.0,0.00013808,2]
[331640071,1720599063620,-309.1344631,0.00013808,2]
[331640072,1720599063629,-500.0,0.00013808,2]
[331640073,1720599063639,-500.0,0.00013808,2]
[331640074,1720599063648,-276.61406207,0.00013808,2]
[331640075,1720599063673,-223.38593793,0.00013808,2]
[331640076,1720599063682,-1369.58,0.00013808,2]
[331640077,1720599063692,-500.0,0.00013808,2]
[331640078,1720599063702,-1119.02,0.00013808,2]
[331640079,1720599063711,-500.0,0.00013808,2]
[331640080,1720599063721,-549.54,0.00013808,2]
[331640081,1720599063730,-885.68,0.00013808,2]
[331640082,1720599063740,-698.22,0.00013808,2]
[331640083,1720599063749,-500.0,0.00013808,2]
[331640084,1720599063758,-639.29,0.00013808,2]
[331640085,1720599063768,-676.16,0.00013808,2]
[331640086,1720599063778,-500.0,0.00013808,2]
[331640087,1720599063788,-500.0,0.00013808,2]
[331640088,1720599063798,-453.55042175,0.00013808,2]
[331640089,1720599063807,-500.0,0.00013808,2]
[331640090,1720599063816,-500.0,0.00013808,2]
[331640091,1720599063832,-614.26,0.00013808,2]
[331640092,1720599063846,-500.0,0.00013808,2]
[331640093,1720599063864,-2018.22,0.00013808,2]
[331640094,1720599063880,-686.94,0.00013808,2]
[331640095,1720599063889,-1271.45,0.00013808,2]
[331640096,1720599063899,-500.0,0.00013808,2]
[331640097,1720599063909,-782.38,0.00013808,2]
[331640098,1720599063919,-667.64,0.00013808,2]
[331640099,1720599063928,-553.97,0.00013808,2]
[331640100,1720599063938,-500.0,0.00013808,2]
[331640101,1720599063947,-188.74428,0.00013808,2]
[331640102,1720599063956,-2008.57,0.00013808,2]
[331640103,1720599063965,-500.0,0.00013808,2]
[331640104,1720599063975,-500.0,0.00013808,2]
[331640105,1720599063984,-500.0,0.00013808,2]
[331640106,1720599063994,-290.81936058,0.00013808,2]
[331640107,1720599064003,-469.23004096,0.00013808,2]
[331640108,1720599064048,-30.76995904,0.00013808,2]
[331640109,1720599064057,-267.54416501,0.00013808,2]
[331640110,1720599064073,-232.45583499,0.00013808,2]
[331640111,1720599064082,-500.0,0.00013808,2]
[331640112,1720599064091,-1999.22,0.00013808,2]
[331640113,1720599064100,-1267.11,0.00013808,2]
[331640114,1720599064110,-500.0,0.00013808,2]
[331640115,1720599064119,-2206.75,0.00013808,2]
[331640116,1720599064128,-500.0,0.00013808,2]
[331640117,1720599064137,-500.0,0.00013808,2]
[331640118,1720599064147,-623.51,0.00013808,2]
[331640119,1720599064157,-500.0,0.00013808,2]
[331640120,1720599064166,-500.0,0.00013808,2]
[331640121,1720599064175,-500.0,0.00013808,2]
[331640122,1720599064184,-500.0,0.00013808,2]
[331640123,1720599064194,-904.32,0.00013808,2]
[331640124,1720599064203,-787.01,0.00013808,2]
[331640125,1720599064213,-1394.16,0.00013808,2]
[331640126,1720599064223,-500.0,0.00013808,2]
[331640127,1720599064232,-500.0,0.00013808,2]
[331640128,1720599064242,-500.0,0.00013808,2]
[331640129,1720599064251,-500.0,0.00013808,2]
[331640130,1720599064261,-690.63,0.00013808,2]
[331640131,1720599064271,-500.0,0.00013808,2]
[331640132,1720599064282,-532.04,0.00013808,2]
[331640133,1720599064291,-725.69,0.00013808,2]
[331640134,1720599064300,-1363.18,0.00013808,2]
[331640135,1720599064310,-500.0,0.00013808,2]
[331640136,1720599064324,-1502.92,0.00013808,2]
[331640137,1720599064333,-638.46,0.00013808,2]
[331640138,1720599064343,-1075.16,0.00013808,2]
[331640139,1720599064352,-624.13,0.00013808,2]
[331640140,1720599064363,-564.82,0.00013808,2]
[331640141,1720599064374,-500.0,0.00013808,2]
[331640142,1720599064384,-500.0,0.00013808,2]
[331640143,1720599064394,-1414.25,0.00013808,2]
[331640144,1720599064403,-558.91,0.00013808,2]
[331640145,1720599064413,-605.92,0.00013808,2]
[331640146,1720599064423,-1102.44,0.00013808,2]
[331640147,1720599064432,-500.0,0.00013808,2]
[331640148,1720599064442,-500.0,0.00013808,2]
[331640149,1720599064453,-500.0,0.00013808,2]
[331640150,1720599064462,-500.0,0.00013808,2]
[331640151,1720599064472,-500.0,0.00013808,2]
[331640152,1720599064482,-536.21,0.00013808,2]
[331640153,1720599064493,-1424.11,0.00013808,2]
[331640154,1720599064503,-500.0,0.00013808,2]
[331640155,1720599064514,-1542.9,0.00013808,2]
[331640156,1720599064525,-500.0,0.00013808,2]
[331640157,1720599064534,-2311.64,0.00013808,2]
[331640158,1720599064543,-675.33,0.00013808,2]
[331640159,1720599064552,-735.88,0.00013808,2]
[331640160,1720599064562,-500.0,0.00013808,2]
[331640161,1720599064575,-500.0,0.00013808,2]
[331640162,1720599064585,-520.9,0.00013808,2]
[331640163,1720599064594,-550.92,0.00013808,2]
[331640164,1720599064604,-735.1,0.00013808,2]
[331640165,1720599064614,-500.0,0.00013808,2]
[331640166,1720599064624,-500.0,0.00013808,2]
[331640167,1720599064633,-983.61,0.00013808,2]
[331640168,1720599064643,-1779.81,0.00013808,2]
[331640169,1720599064652,-1344.22,0.00013808,2]
[331640170,1720599064665,-500.0,0.00013808,2]
[331640171,1720599064674,-500.0,0.00013808,2]
[331640172,1720599064683,-500.0,0.00013808,2]
[331640173,1720599064693,-1360.07,0.00013808,2]
[331640174,1720599064702,-500.0,0.00013808,2]
[331640175,1720599064711,-1604.96,0.00013808,2]
[331640176,1720599064720,-500.0,0.00013808,2]
[331640177,1720599064730,-756.49,0.00013808,2]
[331640178,1720599064739,-500.0,0.00013808,2]
[331640179,1720599064748,-500.0,0.00013808,2]
[331640180,1720599064758,-547.2,0.00013808,2]
[331640181,1720599064768,-500.0,0.00013808,2]
[331640182,1720599064777,-531.78,0.00013808,2]
[331640183,1720599064787,-822.71,0.00013808,2]
[331640184,1720599064795,-1683.85,0.00013808,2]
[331640185,1720599064806,-524.61,0.00013808,2]
[331640186,1720599064815,-500.0,0.00013808,2]
[331640187,1720599064828,-500.0,0.00013808,2]
[331640188,1720599064837,-500.0,0.00013808,2]
[331640189,1720599064846,-500.0,0.00013808,2]
[331640190,1720599064855,-638.6661096,0.00013808,2]
[331640191,1720599064864,-500.0,0.00013808,2]
[331640192,1720599064874,-1558.27,0.00013808,2]
[331640193,1720599064883,-500.0,0.00013808,2]
[331640194,1720599064892,-714.25,0.00013808,2]
[331640195,1720599064902,-1066.79,0.00013808,2]
[331640196,1720599064911,-500.0,0.00013808,2]
[331640197,1720599064920,-500.0,0.00013808,2]
[331640198,1720599064930,-1204.92,0.00013808,2]
[331640199,1720599064939,-500.0,0.00013808,2]
[331640200,1720599064948,-500.0,0.00013808,2]
[331640201,1720599064957,-530.19,0.00013808,2]
[331640202,1720599064967,-500.0,0.00013808,2]
[331640203,1720599064976,-2232.76,0.00013808,2]
[331640204,1720599064985,-500.0,0.00013808,2]
[331640205,1720599064994,-620.75,0.00013808,2]
[331640206,1720599065003,-500.0,0.00013808,2]
[331640207,1720599065013,-500.0,0.00013808,2]
[331640208,1720599065022,-855.05,0.00013808,2]
[331640209,1720599065032,-1275.18,0.00013808,2]
[331640210,1720599065041,-500.0,0.00013808,2]
[331640211,1720599065051,-644.41,0.00013808,2]
[331640212,1720599065061,-500.0,0.00013808,2]
[331640213,1720599065074,-1683.31,0.00013808,2]
[331640214,1720599065083,-895.21,0.00013808,2]
[331640215,1720599065092,-500.0,0.00013808,2]
[331640216,1720599065101,-787.1,0.00013808,2]
[331640217,1720599065111,-500.0,0.00013808,2]
[331640218,1720599065121,-627.6,0.00013808,2]
[331640219,1720599065130,-546.71,0.00013808,2]
[331640220,1720599065139,-989.85,0.00013808,2]
[331640221,1720599065148,-500.0,0.00013808,2]
[331640222,1720599065158,-2051.53,0.00013808,2]
[331640223,1720599065167,-500.0,0.00013808,2]
[331640224,1720599065175,-2095.57,0.00013808,2]
[331640225,1720599065184,-992.31,0.00013808,2]
[331640226,1720599065193,-567.73,0.00013808,2]
[331640227,1720599065203,-500.0,0.00013808,2]
[331640228,1720599065211,-500.0,0.00013808,2]
[331640229,1720599065221,-500.0,0.00013808,2]
[331640230,1720599065230,-522.4,0.00013808,2]
[331640231,1720599065239,-636.54,0.00013808,2]
[331640232,1720599065248,-794.74,0.00013808,2]
[331640233,1720599065257,-500.0,0.00013808,2]
[331640234,1720599065267,-1864.37,0.00013808,2]
[331640235,1720599065275,-500.0,0.00013808,2]
[331640236,1720599065284,-570.04,0.00013808,2]
[331640237,1720599065294,-500.0,0.00013808,2]
[331640238,1720599065303,-633.0,0.00013808,2]
[331640239,1720599065312,-1198.38,0.00013808,2]
[331640240,1720599065323,-500.0,0.00013808,2]
[331640241,1720599065333,-1211.28,0.00013808,2]
[331640242,1720599065342,-500.0,0.00013808,2]
[331640243,1720599065351,-809.68,0.00013808,2]
[331640244,1720599065360,-500.0,0.00013808,2]
[331640245,1720599065369,-500.0,0.00013808,2]
[331640246,1720599065379,-500.0,0.00013808,2]
[331640247,1720599065389,-500.0,0.00013808,2]
[331640248,1720599065399,-789.3,0.00013808,2]
[331640249,1720599065408,-560.53,0.00013808,2]
[331640250,1720599065418,-500.0,0.00013808,2]
[331640251,1720599065427,-500.0,0.00013808,2]
[331640252,1720599065437,-500.0,0.00013808,2]
[331640253,1720599065446,-500.0,0.00013808,2]
[331640254,1720599065455,-500.0,0.00013808,2]
[331640255,1720599065464,-615.3,0.00013808,2]
[331640256,1720599065474,-2325.79,0.00013808,2]
[331640257,1720599065483,-151.0,0.00013808,2]
[331640258,1720599065493,-1713.85,0.00013808,2]
[331640259,1720599065503,-500.0,0.00013808,2]
[331640260,1720599065512,-500.0,0.00013808,2]
[331640261,1720599065522,-903.69,0.00013808,2]
[331640262,1720599065532,-500.0,0.00013808,2]
[331640263,1720599065541,-765.64,0.00013808,2]
[331640264,1720599065550,-500.0,0.00013808,2]
[331640265,1720599065559,-500.0,0.00013808,2]
[331640266,1720599065569,-500.0,0.00013808,2]
[331640267,1720599065580,-151.0,0.00013808,2]
[331640268,1720599065589,-500.0,0.00013808,2]
[331640269,1720599065598,-500.0,0.00013808,2]
[331640270,1720599065607,-500.0,0.00013808,2]
[331640271,1720599065616,-500.0,0.00013808,2]
[331640272,1720599065625,-1016.73,0.00013808,2]
[331640273,1720599065634,-500.0,0.00013808,2]
[331640274,1720599065644,-2053.88,0.00013808,2]
[331640275,1720599065653,-1446.59,0.00013808,2]
[331640276,1720599065662,-1224.84,0.00013808,2]
[331640277,1720599065671,-1063.5,0.00013808,2]
[331640278,1720599065680,-1581.74,0.00013808,2]
[331640279,1720599065690,-500.0,0.00013808,2]
[331640280,1720599065700,-500.0,0.00013808,2]
[331640281,1720599065709,-770.63,0.00013808,2]
[331640282,1720599065718,-1892.73,0.00013808,2]
[331640283,1720599065728,-500.0,0.00013808,2]
[331640284,1720599065737,-1325.52,0.00013808,2]
[331640285,1720599065746,-500.0,0.00013808,2]
[331640286,1720599065755,-546.62,0.00013808,2]
[331640287,1720599065765,-1351.13,0.00013808,2]
[331640288,1720599065774,-775.73,0.00013808,2]
[331640289,1720599065783,-500.0,0.00013808,2]
[331640290,1720599065793,-1010.28,0.00013808,2]
[331640291,1720599065802,-500.0,0.00013808,2]
[331640292,1720599065811,-272.86547615,0.00013808,2]
[331640293,1720599065821,-1358.5,0.00013808,2]
[331640294,1720599065831,-1320.23,0.00013808,2]
[331640295,1720599065839,-1513.11,0.00013808,2]
[331640296,1720599065850,-569.89,0.00013808,2]
[331640297,1720599065859,-889.1,0.00013808,2]
[331640298,1720599065868,-1391.95,0.00013808,2]
[331640299,1720599065877,-500.0,0.00013808,2]
[331640300,1720599065886,-500.0,0.00013808,2]
[331640301,1720599065894,-500.0,0.00013808,2]
[331640302,1720599065903,-1262.25,0.00013808,2]
[331640303,1720599065912,-1622.26,0.00013808,2]
[331640304,1720599065921,-612.34,0.00013808,2]
[331640305,1720599065930,-500.0,0.00013808,2]
[331640306,1720599065939,-500.0,0.00013808,2]
[331640307,1720599065948,-895.12,0.00013808,2]
[331640308,1720599065958,-2401.6,0.00013808,2]
[331640309,1720599065968,-500.0,0.00013808,2]
[331640310,1720599065977,-500.0,0.00013808,2]
[331640311,1720599065986,-1905.89,0.00013808,2]
[331640312,1720599065996,-700.36,0.00013808,2]
[331640313,1720599066005,-500.0,0.00013808,2]
[331640314,1720599066015,-651.97,0.00013808,2]
[331640315,1720599066023,-738.82,0.00013808,2]
[331640316,1720599066033,-1052.55,0.00013808,2]
[331640317,1720599066042,-565.31,0.00013808,2]
[331640318,1720599066052,-655.18,0.00013808,2]
[331640319,1720599066061,-1915.89,0.00013808,2]
[331640320,1720599066071,-636.16,0.00013808,2]
[331640321,1720599066080,-1461.74,0.00013808,2]
[331640322,1720599066089,-756.11,0.00013808,2]
[331640323,1720599066098,-514.38,0.00013808,2]
[331640324,1720599066107,-821.58,0.00013808,2]
[331640325,1720599066117,-500.0,0.00013808,2]
[331640326,1720599066126,-579.93,0.00013808,2]
[331640327,1720599066135,-500.0,0.00013808,2]
[331640328,1720599066144,-1067.64,0.00013808,2]
[331640329,1720599066154,-500.0,0.00013808,2]
[331640330,1720599066164,-1392.84,0.00013808,2]
[331640331,1720599066174,-1195.75,0.00013808,2]
[331640332,1720599066183,-686.96,0.00013808,2]
[331640333,1720599066192,-875.94,0.00013808,2]
[331640334,1720599066201,-1240.99,0.00013808,2]
[331640335,1720599066211,-1399.89,0.00013808,2]
[331640336,1720599066220,-500.0,0.00013808,2]
[331640337,1720599066229,-1421.29,0.00013808,2]
[331640338,1720599066239,-500.0,0.00013808,2]
[331640339,1720599066248,-808.05,0.00013808,2]
[331640340,1720599066257,-566.87,0.00013808,2]
[331640341,1720599066266,-541.08,0.00013808,2]
[331640342,1720599066275,-838.58,0.00013808,2]
[331640343,1720599066284,-500.0,0.00013808,2]
[331640344,1720599066293,-854.33,0.00013808,2]
[331640345,1720599066302,-2183.86,0.00013808,2]
[331640346,1720599066311,-766.96,0.00013808,2]
[331640347,1720599066322,-500.0,0.00013808,2]
[331640348,1720599066331,-151.0,0.00013808,2]
[331640349,1720599066342,-151.0,0.00013808,2]
[331640350,1720599066352,-758.22,0.00013808,2]
[331640351,1720599066361,-2347.67,0.00013808,2]
[331640352,1720599066372,-1416.52,0.00013808,2]
[331640353,1720599066381,-500.0,0.00013808,2]
[331640354,1720599066390,-505.57,0.00013808,2]
[331640355,1720599066399,-1601.78,0.00013808,2]
[331640356,1720599066408,-608.64,0.00013808,2]
[331640357,1720599066417,-520.95,0.00013808,2]
[331640358,1720599066426,-1224.06,0.00013808,2]
[331640359,1720599066435,-990.67,0.00013808,2]
[331640360,1720599066444,-851.91,0.00013808,2]
[331640361,1720599066454,-956.7,0.00013808,2]
[331640362,1720599066464,-500.0,0.00013808,2]
[331640363,1720599066473,-647.54,0.00013808,2]
[331640364,1720599066482,-791.23,0.00013808,2]
[331640365,1720599066491,-1739.82,0.00013808,2]
[331640366,1720599066501,-500.0,0.00013808,2]
[331640367,1720599066510,-1133.22,0.00013808,2]
[331640368,1720599066519,-1267.17,0.00013808,2]
[331640369,1720599066528,-500.0,0.00013808,2]
[331640370,1720599066537,-151.0,0.00013808,2]
[331640371,1720599066547,-151.0,0.00013808,2]
[331640372,1720599066556,-565.74,0.00013808,2]
[331640373,1720599066566,-500.0,0.00013808,2]
[331640374,1720599066578,-1391.5,0.00013808,2]
[331640375,1720599066587,-58.72260616,0.00013808,2]
[331640376,1720599066694,-337.374,0.00013808,2]